Cogmind - Beta 15 @@@ ROGUE MODE // 2025.07.01 @ 11:48:11 Player: Fangrelle Result: Self-destructed Performance ------------- Evolutions (1) 500 Regions Visited (2) 400 Robots Destroyed (27) 135 Value Destroyed (523) 523 Prototype IDs (0) 0 Alien Tech Used (0) 0 Bonus (0) 0 TOTAL SCORE: 1558 Bonus ------- None Cogmind --------- Core Integrity 400/400 Matter 300/300 Energy 250/250 System Corruption 0% Temperature Cool (0) Movement Treading (320) Ox2 Location -9/Materials Parts ------- > --- POWER (1) -------- Ion Engine > --- PROPULSION (2) --- Light Treads Light Treads > --- UTILITY (4) ------ Huge Storage Unit Structural Scanner > --- WEAPON (2) ------- Assault Rifle Assault Rifle > --- INVENTORY (25) --- Light Treads Light Treads Light Treads Armored Wheel Armored Wheel Armored Wheel Armored Wheel Improved Hover Unit Improved Hover Unit Improved Hover Unit Improved Hover Unit Machine Analyzer Signal Interpreter Hacking Suite Recalibrator EM Pulse Gun Assault Rifle Grenade Launcher Grenade Launcher Grenade Launcher Mini Grenade Launcher Mini Grenade Launcher Mini Grenade Launcher Datajack Mining Claw Peak State ------------ > --- POWER ------------ Ion Engine > --- PROPULSION ------- Light Treads Light Treads > --- UTILITY ---------- Huge Storage Unit Structural Scanner > --- WEAPON ----------- EM Pulse Gun EM Pulse Gun > --- INVENTORY -------- Light Treads Light Treads Light Treads Armored Wheel Armored Wheel Armored Wheel Armored Wheel Improved Hover Unit Improved Hover Unit Improved Hover Unit Improved Hover Unit Machine Analyzer Recalibrator EM Pulse Gun EM Pulse Gun Assault Rifle Grenade Launcher Mini Grenade Launcher Mini Grenade Launcher Mini Grenade Launcher Mini Grenade Launcher Datajack Welding Torch [Rating: 11] Favorites ----------- Power Ion Engine Engine Ion Engine Propulsion Light Treads Treads Light Treads Leg Aluminum Leg Utility Huge Storage Unit Device Structural Scanner Storage Huge Storage Unit Weapon Assault Rifle Energy Gun EM Pulse Gun Ballistic Gun Assault Rifle Special Weapon Welding Torch Build | -11 -10 -9 ------- Run | Yrd Mat Mat Slots Evolved 2 | . . 2 Power . | . . . Propulsion . | . . . Utility 2 | . . 2 Weapon . | . . . Parts Attached 16 | 4 12 . Power 1 | 1 . . Engine 1 | 1 . . Core . | . . . Reactor . | . . . Propulsion 5 | 2 3 . Treads 5 | 2 3 . Leg . | . . . Wheel . | . . . Hover . | . . . Flight . | . . . Utility 2 | . 2 . Device 1 | . 1 . Storage 1 | . 1 . Processor . | . . . Hackware . | . . . Protection . | . . . Artifact . | . . . Weapon 8 | 1 7 . Energy Gun 4 | . 4 . Energy Cannon . | . . . Ballistic Gun 3 | 1 2 . Ballistic Cannon . | . . . Launcher . | . . . Special Weapon 1 | . 1 . Impact Weapon . | . . . Slashing Weapon . | . . . Piercing Weapon . | . . . Special Melee Weapon . | . . . Unidentified Prototypes . | . . . Parts Lost 2 | . 2 . Power . | . . . Propulsion . | . . . Utility . | . . . Weapon 2 | . 2 . Highest Loss Streak 1 | . 1 . To Critical Strikes . | . . . Average Backups 20 | 5 20 . Power . | . . . Propulsion 9 | 4 9 . Utility 2 | . 2 . Weapon 7 | 1 7 . Tool/Special . | . . . Unused Backups 35 | 3 9 23 Power 1 | 1 . . Propulsion 17 | . 6 11 Utility 6 | 1 1 4 Weapon 10 | 1 2 7 Tool/Special 1 | . . 1 Average Slot Usage (%) 96 | . 96 . Engine 14 | . 14 . Treads 28 | . 28 . Device 11 | . 11 . Storage 14 | . 14 . Energy Gun 8 | . 8 . Ballistic Gun 19 | . 19 . Peak Build Rating 11 | 6 11 . Average Rating 9 | 5 9 . On Entrance 7 | 6 6 11 Naked Turns . | . . . Heaviest Build 90 | 14 90 . Greatest Support 40 | 40 40 . Greatest Overweight (x) 2 | . 2 . Average Overweight (x) 1 | . 1 . Largest Inventory Capacity 25 | 8 25 . Average Capacity 22 | 8 22 . Most Carried 25 | 8 25 . Average Carried 20 | 5 20 . Final Capacity 25 | 8 25 25 Final Carried 25 | 6 25 25 Class Distribution -------------------- 100% | Mutant Dominant Class ---------------- Mutant | -10/Materials Mutant | -9/Materials Resources | -11 -10 -9 ----------- Run | Yrd Mat Mat Matter Collected 522 | 249 273 . Remotely . | . . . Salvage Created 949 | 55 894 . Parts 74 | 4 70 . Haulers Intercepted 2 | . 2 . Recyclers Shooed 3 | 1 2 . Parts Field Recycled . | . . . Retrieved Matter . | . . . Parts Self-Destructed . | . . . Prevented . | . . . Kills | -11 -10 -9 ------- Run | Yrd Mat Mat Combat Hostiles Destroyed 16 | . 16 . Guns 15 | . 15 . AOE 1 | . 1 . Classes Destroyed 8 | 1 7 . Worker 3 | . 3 . Hauler 2 | . 2 . Recycler 2 | 1 1 . Mechanic 1 | . 1 . Operator 1 | . 1 . Watcher 2 | . 2 . Swarmer 6 | . 6 . Grunt 10 | . 10 . Best Kill Streak 4 | 1 4 . Combat Bots Only 3 | . 3 . Max Kills in Single Turn 1 | 1 1 . Gunslinging . | . . . Exploded 1 | . 1 . Melee . | . . . Uniques/NPCs Destroyed . | . . . Combat | -11 -10 -9 -------- Run | Yrd Mat Mat Hostile Shots Fired 75 | . 75 . Missed 25 | . 25 . Hits 50 | . 50 . Projectile 50 | . 50 . Critical Strikes 1 | . 1 . Damage Taken 531 | . 531 . Core 81 | . 81 . Absorbed by Shields . | . . . Core Remaining (%) 83 | 100 67 . Volleys Fired 75 | 3 72 . Largest 2 | 2 2 . Hottest 80 | 60 80 . Shots Fired 141 | 6 135 . Gun 137 | 6 131 . Cannon . | . . . Launcher . | . . . Special 4 | . 4 . Kinetic 54 | 3 51 . Thermal 4 | . 4 . Explosive . | . . . Electromagnetic 83 | 3 80 . Robot Hit Streak 12 | 1 12 . Robot Miss Streak 6 | 2 6 . Penetration Max . | . . . Secondary Targets 4 | . 4 . Max Gunslinging Chain 1 | . 1 . Shots Hit Robots 79 | 3 76 . Core Hits 39 | 2 37 . Critical Kills . | . . . Critical Parts Destroyed . | . . . Critical Strikes 2 | 1 1 . Corrupt 2 | 1 1 . Melee Attacks . | . . . Impact . | . . . Slashing . | . . . Piercing . | . . . Sneak Attacks . | . . . Combat Hostiles . | . . . Follow-up Attacks . | . . . Damage Inflicted 1117 | 35 1082 . Guns 1006 | 35 971 . Cannons . | . . . Explosions 111 | . 111 . Melee . | . . . Ramming . | . . . Kinetic 500 | 10 490 . Thermal 111 | . 111 . Explosive . | . . . Electromagnetic 506 | 25 481 . Impact . | . . . Slashing . | . . . Piercing . | . . . Highest Corruption . | . . . Average Corruption . | . . . Corruption Purged . | . . . Corruption Blocked . | . . . Overload Shots . | . . . Overflow Damage . | . . . Projectiles . | . . . Explosions . | . . . Melee . | . . . Knockbacks . | . . . Impact . | . . . Kinetic . | . . . Secondary . | . . . Self-Inflicted Damage . | . . . Shots . | . . . Rammed . | . . . Targets Rammed . | . . . Kicked . | . . . Crushed . | . . . Highest Temperature 210 | . 210 . Average Temperature 97 | . 97 . Received Heat Transfer 228 | . 228 . Siege Activations . | . . . Martial Activations . | . . . Shielding Activations . | . . . Robots Disrupted . | . . . Combat Hostiles . | . . . Robots Corrupted . | . . . Combat Hostiles . | . . . Parts Fried 1 | . 1 . Impact Corruptions . | . . . Robots Melted . | . . . Combat Hostiles . | . . . Parts Melted . | . . . Heat Transferred 100 | . 100 . Parts Sabotaged . | . . . Parts Stolen . | . . . Parts Stripped . | . . . Power Chain Reactions 2 | . 2 . Alert | -11 -10 -9 ------- Run | Yrd Mat Mat Maximum Alert Level . | . . . Low Security (%) 100 | 100 100 . Level 1 . | . . . Level 2 . | . . . Level 3 . | . . . Level 4 . | . . . Level 5 . | . . . High Security . | . . . Max Security . | . . . Peak Influence 132 | 5 132 . Initial 21 | . . 21 Average 54 | 1 55 . Influence Increases 653 | 5 648 . Destroy 0b10 Robot/C 320 | . 320 . Destroy 0b10 Robot/NC 55 | 5 50 . Destroy Leader 68 | . 68 . Successful Hack 29 | . 29 . Select Force Hacks 60 | . 60 . Disable Machine 45 | . 45 . Destroy Structure 46 | . 46 . Lose Combat Pursuer 30 | . 30 . Influence Decreases 632 | 5 597 30 Entered New Map 30 | . . 30 Time Decay 582 | 5 577 . Lost Part 20 | . 20 . Squads Dispatched 3 | . 3 . Investigation 3 | . 3 . Extermination . | . . . Reinforcement . | . . . Assault . | . . . Garrison . | . . . Intercept . | . . . Searches Triggered . | . . . Construction Impeded . | . . . Haulers Reinforced . | . . . Active Scanning Responses . | . . . Cargo Convoy Interrupts . | . . . Stealth | -11 -10 -9 --------- Run | Yrd Mat Mat Distress Signals . | . . . Communications Jammed . | . . . Distress Signals . | . . . Times Spotted 28 | . 28 . Peak Tracking Total 4 | . 4 . Tactical Retreats 1 | . 1 . Traps | -11 -10 -9 ------- Run | Yrd Mat Mat Traps Triggered . | . . . Indirectly . | . . . Trap Hack Attempts . | . . . Triggered . | . . . Disarmed . | . . . Reprogrammed . | . . . Reused . | . . . Traps Extracted . | . . . Installed . | . . . Triggered . | . . . Machines | -11 -10 -9 ---------- Run | Yrd Mat Mat Machines Disabled 4 | . 4 . Max in Single Turn 2 | . 2 . Machines Repaired . | . . . Machines Dismantled . | . . . Machines Sabotaged . | . . . Overloaded Fab Kills . | . . . Hacking | -11 -10 -9 --------- Run | Yrd Mat Mat Machines Accessed 10 | . 10 . Terminals 8 | . 8 . Fabricators . | . . . Repair Stations . | . . . Recycling Units 2 | . 2 . Scanalyzers . | . . . Garrison Access . | . . . Total Hacks 31 | . 31 . Successful 19 | . 19 . Failed 12 | . 12 . Catastrophic . | . . . Database Lockouts . | . . . Manual 31 | . 31 . Terminals 24 | . 24 . Fabricators . | . . . Repair Stations . | . . . Recycling Units 7 | . 7 . Scanalyzers . | . . . Garrison Access . | . . . Terminal Hacks . | . . . Fabricator Hacks . | . . . Repair Station Hacks . | . . . Recycling Unit Hacks . | . . . Scanalyzer . | . . . Garrison Access Hacks . | . . . Unauthorized Hacks 19 | . 19 . Terminals 13 | . 13 . Assimilate 4 | . 4 . Botnet 7 | . 7 . Operators 1 | . 1 . Skim 1 | . 1 . Fabricators . | . . . Repair Stations . | . . . Recycling Units 6 | . 6 . Reject 1 | . 1 . Recyclers 2 | . 2 . Mask 1 | . 1 . Tunnel 2 | . 2 . Scanalyzers . | . . . Garrison Access . | . . . Data Cores Recovered . | . . . Used . | . . . Hacking Detections 10 | . 10 . Full Trace Events 1 | . 1 . Feedback Events . | . . . Feedback Blocked . | . . . Robot Schematics Acquired . | . . . Robots Built . | . . . Authchips . | . . . Time . | . . . Total Robot Build Rating . | . . . Part Schematics Acquired . | . . . Parts Built . | . . . Authchips . | . . . Time . | . . . Total Part Build Rating . | . . . Parts Repaired . | . . . Time . | . . . Parts Recycled . | . . . Recycled Matter . | . . . Retrieved Matter . | . . . Retrieved Components . | . . . Parts Scanalyzed . | . . . Part Schematics Acquired . | . . . Parts Damaged . | . . . Bothacking | -11 -10 -9 ------------ Run | Yrd Mat Mat Used RIF Installer . | . . . Robots Hacked . | . . . Non-combat . | . . . Combat . | . . . Robot Hacks Applied . | . . . Relay Couplers Released . | . . . Fabnet Peak Effective % . | . . . Robots Rewired . | . . . Allies Hacked . | . . . Hacks Repelled . | . . . Allies | -11 -10 -9 -------- Run | Yrd Mat Mat Total Allies . | . . . Largest Group . | . . . Highest-Rated Group . | . . . Highest-Rated Ally . | . . . Total Orders . | . . . Ally Attacks . | . . . Total Damage . | . . . Kills . | . . . Allies Corrupted . | . . . Allies Melted . | . . . Intel | -11 -10 -9 ------- Run | Yrd Mat Mat Active Infowar (turns) 2124 | . 2124 . Structural 2124 | . 2124 . Robot Analysis Total . | . . . Derelict Logs Recovered . | . . . Drone Launches . | . . . Drone Recoveries . | . . . Exploration | -11 -10 -9 ------------- Run | Yrd Mat Mat Turns Passed 2684 | 40 2644 . Spaces Moved 845 | 17 828 . Core . | . . . Treads 840 | 12 828 . Legs 5 | 5 . . Wheels . | . . . Hover . | . . . Flight . | . . . Fastest Speed 120 | 120 160 . Average Speed 283 | 148 286 . Slowest Speed 320 | 160 320 . Overloaded Moves . | . . . Propulsion Burnouts . | . . . Robots Hopped . | . . . Potential Cave-ins . | . . . Cave-ins Triggered . | . . . Exploration Rate (%) 33 | 2 96 1 Regions Visited 2 Branch Regions . Pre-discovered Areas 2 | . 2 . Known Exits Taken . | . . . Unknown Exits Taken 2 | 1 1 . Scrap Searched . | . . . Spaces Dug . | . . . Terrain Destroyed 58 | . 58 . Melee . | . . . Projectile . | . . . AOE 58 | . 58 . Terrain Rammed . | . . . Walls Destroyed . | . . . Machines Disabled . | . . . Actions | -11 -10 -9 --------- Run | Yrd Mat Mat Total 999 | 27 972 . Wait 11 | . 11 . Move 843 | 16 827 . Hop . | . . . Pick Up 35 | 1 34 . Fast Attach 3 | . 3 . Attach 6 | 3 3 . Detach 2 | 2 . . Swap 7 | 1 6 . Drop 17 | 1 16 . Fire 75 | 3 72 . Melee . | . . . Ram . | . . . Kick . | . . . Crush . | . . . Escape Stasis . | . . . Rewire . | . . . Trap . | . . . Miscellaneous . | . . . Route ------- -11/Scrapyard -10/Materials (discovered 6 exits: [*Mat x3] / [*Min x2] / [*Sub]) -9/Materials History --------- Turn | Location | Event 1 | -11/Scrapyard | Discovered new exit (range 3) 41 | -11/Scrapyard | Entered Materials 41 | -10/Materials | Discovered new exit (range 7) 306 | -10/Materials | Discovered new exit (range 16) 308 | -10/Materials | Build established: Mutant 427 | -10/Materials | Discovered new exit (range 15) 1459 | -10/Materials | Discovered new exit (range 4) 1887 | -10/Materials | Discovered new exit (range 13) 2131 | -10/Materials | Discovered new exit (range 5) 2685 | -10/Materials | Entered another Materials area 2685 | -9/Materials | Evolved 2 slots: Utility x2 2685 | -9/Materials | Self-destructed Last Messages --------------- Testing... System interface override in place. >>Trojan(Botnet) Trojan loaded successfully. Testing... Terminal linked with 5 systems. Awaiting botnet instructions. 02185_ G-34 Mercenary destroyed. 02197_ K-01 Serf collects debris. 02197_ Acquired 18 matter. 02201_ K-01 Serf collects debris. 02262_ O-16 Technician: "IFF HANDSHAKE FAILED. SECURING TERMINAL." 02290_ O-16 Technician destroyed. 02296_ Dropped Welding Torch. 02297_ Acquired Hacking Suite. 02298_ Acquired 6 matter. 02302_ K-01 Serf collects debris. PARAMETERS=UTILITY+2 LOCATION=UNKNOWN GOAL=ESCAPE Map ----- +----------------------------------------------------+ | ?????????????????????????????????????????????????? | | ?????????????????????????????????????????????????? | | ?????????????????????????????????????????????????? | | ?????????????????????????????????????????????????? | | ?????????????????????????????????????????????????? | | ?????????????????????????????????????????????????? | | ?????????????????????????????????????????????????? | | ?????????????????????????????????????????????????? | | ?????????????????????????????????????????????????? | | ?????????????????????????????????????????????????? | | ?????????????????????????????????????????????????? | | ??????????????????????#######????????????????????? | | ??????????????????????#######????????????????????? | | ?????????????????????? ????????????????????? | | ??????????????????????? ?????????????????????? | | ?????????????????????? ????????????????????? | | ??????????????????????## ##????????????????????? | | ??????????????????????## ##????????????????????? | | ??????????????????????## ##????????????????????? | | ??????????????????????## # ????????????????????? | | ?????????????????????? # # ????????????????????? | | ?????????????????????? # # ????????????????????? | | ?????????????????????? # # ????????????????????? | | ?????????????????????? + + ????????????????????? | | ?????????????????????? # # ????????????????????? | | ?????????????????????? # @ # ????????????????????? | | ?????????????????????? # ##????????????????????? | | ?????????????????????? ######????????????????????? | | ??????????????????????## +????????????????????? | | ?????????????????????????????????????????????????? | | ?????????????????????????????????????????????????? | | ?????????????????????????????????????????????????? | | ?????????????????????????????????????????????????? | | ?????????????????????????????????????????????????? | | ?????????????????????????????????????????????????? | | ?????????????????????????????????????????????????? | | ?????????????????????????????????????????????????? | | ?????????????????????????????????????????????????? | | ?????????????????????????????????????????????????? | | ?????????????????????????????????????????????????? | | | | | | | | | | | | | | | | | | | | | +----------------------------------------------------+ Best States ------------- Heat Dissipation 25 Energy Generation 10 Energy Capacity 250 Matter Stores 300 Matter Capacity 300 Sight Range 16 Terrain Scan Density 10 Evasion (%) 40 Recoil Reduction 2 Item Schematics ----------------- None Robot Schematics ------------------ None Fabricated ------------ Nothing Repaired ---------- Nothing Alien Tech Used ----------------- None Achievements -------------- None Challenges ------------ None Game ------ Seed BehemothPotentialTube Manual? 0 Play Time 00:13:13 Cumulative 158.5 hours Start 2025.07.01 @ 11:34:45 End 2025.07.01 @ 11:48:11 Sessions 1 Manual Loads 0 Difficulty Rogue Special Mode None Game No. 304 Rogue 304 Adventurer 0 Explorer 0 Win Type - Total 0 Types 0/0/0/0/0/0/0/0/0/0 Lore% 44 Gallery% 39 Achievement% 36 Wizard Run 0 Options --------- Layout 0 ASCII 0 Keyboard 0 Movement Mouse Keybinds 0 Fullscreen 1 Font 24/Smallcaps Map View 183x50 Zoom Use 93% Tactical HUD 1 Map Filters NONE Filters NONE Steam 1 RUN: fc09ac31-df27-47c8-b060-0b986c4d16e4